bitfinex/quotes_ETHUSD_20250815
["timestamp","ask_amount","ask_price","bid_price","bid_amount"]
[1755253902805,9.24471184,4642.5,4642.4,1e-08]
[1755253903011,8.93111184,4642.5,4642.4,1e-08]
[1755253903520,9.24471184,4642.5,4642.4,1e-08]
[1755253903690,10.2578811,4642.5,4642.4,1e-08]
[1755253903895,10.72234039,4642.5,4642.4,1e-08]
[1755253904512,10.40874039,4642.5,4642.4,1e-08]
[1755253905220,10.03064039,4642.5,4642.4,1e-08]
[1755253905719,10.67964039,4642.5,4642.4,1e-08]
[1755253905917,10.99324039,4642.5,4642.4,1e-08]
[1755253906994,2.15410464,4642.3,4642.2,1e-08]
[1755253907209,2.15447592,4641.5,4641.4,0.11352925]
[1755253907523,2.15456876,4641.3,4640.3,0.931]
[1755253907687,2.15466161,4641.1,4640.6,0.4688]
[1755253907887,2.26266161,4641.1,4640.6,0.4688]
[1755253908086,3.27583087,4641.1,4640.6,0.4688]
[1755253910931,3.27583087,4641.1,4641.0,0.0018]
[1755253913909,3.27583087,4641.1,4641.0,0.4475]
[1755253914816,3.27583087,4641.1,4641.0,0.0018]
[1755253915152,2.26266161,4641.1,4641.0,0.9405]
[1755253916106,5.55366161,4641.1,4641.0,0.9405]
[1755253916301,5.55286161,4641.1,4641.0,0.9405]
[1755253916507,5.55286161,4641.1,4641.0,0.0018]
[1755253916753,6.62360465,4641.1,4641.0,0.0018]
[1755253917950,2.26186161,4641.1,4641.0,0.9405]
[1755253918241,0.108,4641.1,4641.0,0.9405]
[1755253919305,3.291,4641.6,4641.0,0.9405]
[1755253919513,0.108,4641.4,4641.0,0.9405]
[1755253919715,0.108,4641.4,4641.1,0.9387]
[1755253920229,0.108,4641.4,4641.2,0.9387]
[1755253920425,0.108,4641.4,4641.0,0.0018]
[1755253920631,0.108,4641.4,4641.3,0.9387]
[1755253921644,0.95390183,4643.4,4641.3,0.9387]
[1755253921845,0.108,4642.0,4641.4,0.9387]
[1755253922008,0.108,4642.0,4641.4,2.15451982]
[1755253922356,2.15429649,4641.9,4641.5,1.16495198]
[1755253922508,2.15429649,4641.9,4641.5,0.22625198]
[1755253922708,2.15429649,4641.9,4641.6,0.9387]
[1755253922935,2.15429649,4641.9,4641.3,0.108]
[1755253923137,2.26224445,4642.0,4641.7,0.9387]
[1755253923344,2.26224445,4642.0,4641.3,0.108]
[1755253923534,2.26224445,4642.0,4641.8,0.9387]
[1755253923737,2.26224445,4642.0,4641.9,0.9387]
[1755253925361,0.108,4642.0,4641.9,0.9387]
[1755253927719,0.002,4642.5,4641.9,0.9387]
[1755253927925,0.108,4642.4,4642.0,0.9387]
[1755253928162,0.108,4642.4,4642.1,0.9387]
[1755253928673,0.002,4642.5,4642.2,0.9387]
[1755253928957,0.002,4642.5,4642.4,2.15405824]
[1755253929157,0.002,4642.5,4642.4,2.68090316]
[1755253929360,0.002,4642.5,4642.4,3.61960316]
[1755253930432,0.002,4642.5,4642.4,3.72760316]
[1755253931017,0.002,4642.5,4642.4,3.72840316]
[1755253931223,0.002,4642.5,4642.4,3.74994374]
[1755253931530,0.002,4643.0,4642.9,2.15382627]
[1755253931740,0.002,4643.0,4642.9,15.89798799]
[1755253931958,0.002,4643.0,4642.9,3.4159089]
[1755253932665,0.002,4643.0,4642.9,4.55208263]
[1755253933316,0.002,4643.0,4642.9,6.7059089]
[1755253935126,0.002,4643.0,4642.9,4.55208263]
[1755253936354,0.002,4643.0,4642.9,6.7059089]
[1755253936558,0.002,4643.0,4642.9,4.55208263]
[1755253937287,0.002,4643.0,4642.4,3.81664492]
[1755253937492,0.002,4643.0,4642.8,0.9387]
[1755253937846,0.002,4643.0,4642.9,0.4457]
[1755253938047,2.15577988,4643.0,4642.9,0.4457]
[1755253938295,0.002,4643.0,4642.9,0.4457]
[1755253938473,0.002,4643.0,4642.9,0.9387]
[1755253942388,2.15577988,4643.0,4642.9,0.9387]
[1755253942591,0.002,4643.0,4642.9,0.9387]
[1755253949808,3.252,4643.0,4642.9,0.9387]
[1755253950202,3.252,4643.0,4642.9,0.4457]
[1755253950409,3.252,4643.0,4642.8,0.108]
[1755253950606,3.252,4643.0,4642.8,1.0696]
[1755253950794,3.252,4643.0,4642.9,0.4695]
[1755253950997,3.252,4643.0,4642.9,0.9616]
[1755253951400,3.252,4643.0,4642.8,0.108]
[1755253951698,5.40577988,4643.0,4642.9,0.0008]
[1755253951911,5.94634879,4643.0,4642.9,0.0008]
[1755253955296,5.40577988,4643.0,4642.9,0.0008]
[1755253957320,5.40577988,4643.0,4642.9,0.4703]
[1755253957614,5.40577988,4643.0,4642.9,0.0008]
[1755253958535,5.40497988,4643.0,4642.9,0.0008]
[1755253959388,5.40497988,4643.0,4642.9,0.4703]
[1755253959614,5.40497988,4643.0,4642.9,0.0008]
[1755253960804,5.40417988,4643.0,4642.9,0.0008]
[1755253963036,5.40417988,4643.0,4642.9,0.9624]
[1755253963339,5.40417988,4643.0,4642.9,0.4703]
[1755253963648,5.40417988,4643.0,4642.9,0.0008]
[1755253964734,6.17076784,4643.0,4642.9,0.0008]
[1755253965312,6.54886784,4643.0,4642.9,0.0008]
[1755253965526,6.86246784,4643.0,4642.9,0.0008]
[1755253965942,6.54886784,4643.0,4642.9,0.0008]
[1755253966246,5.78227988,4643.0,4642.9,0.0008]
[1755253966544,6.91547784,4643.0,4642.9,0.0008]
[1755253966962,6.53737784,4643.0,4642.9,0.0008]
[1755253969345,5.40417988,4643.0,4642.9,0.0008]
[1755253969650,8.69217988,4643.0,4642.9,0.9624]
[1755253969853,3.2504,4643.0,4642.9,0.9624]
[1755253970545,0.0004,4643.0,4642.9,0.9624]
[1755253970755,0.0004,4643.0,4642.9,3.11622627]
[1755253970959,0.0004,4643.0,4642.9,4.08219279]
[1755253971957,0.0004,4643.0,4642.9,7.08219279]
[1755253978491,0.002,4643.5,4643.4,2.15359434]
[1755253978784,0.002,4644.1,4643.8,2.15340884]
[1755253979083,0.002,4644.1,4643.9,22.31541781]
[1755253979290,0.002,4644.1,4643.9,23.22528419]
[1755253979791,0.002,4644.1,4643.9,25.20528419]
[1755253979988,0.002,4644.1,4644.0,2.7033161]
[1755253980356,0.002,4644.1,4644.0,3.65624926]
[1755253980659,0.002,4644.1,4644.0,5.8607133]
[1755253980851,0.002,4644.1,4644.0,9.83918014]
[1755253981446,0.002,4644.1,4644.0,12.9975754]
[1755253982652,0.002,4644.1,4644.0,13.0837824]
[1755253983555,0.002,4644.1,4644.0,12.9975754]
[1755253984670,0.002,4644.1,4644.0,12.4475754]
[1755253985256,0.002,4644.1,4644.0,9.49046404]
[1755253985461,0.002,4644.1,4644.0,4.186]
[1755253985889,0.002,4644.1,4643.9,2.26135035]
[1755253985890,0.002,4644.1,4643.9,0.108]
[1755253986098,0.002,4644.1,4644.0,3.286]
[1755253986510,0.002,4644.1,4644.0,5.4393161]
[1755253987022,0.002,4644.1,4644.0,3.286]
[1755253987386,0.002,4644.1,4644.0,5.8920161]
[1755253987584,0.002,4644.1,4644.0,6.97071771]
[1755253988320,0.002,4644.1,4644.0,7.07871771]
[1755253989718,0.002,4644.1,4644.0,10.07871771]
[1755253990793,0.002,4644.1,4644.0,10.62871771]
[1755253991802,0.002,4644.1,4644.0,7.34271771]
[1755253992001,0.002,4644.1,4644.0,10.62771771]
[1755253992202,0.002,4644.1,4644.0,10.79261662]
[1755253992533,0.002,4644.1,4644.0,10.24261662]
[1755253995330,0.002,4644.1,4644.0,10.24361662]
[1755253996437,0.002,4644.1,4644.0,10.79361662]
[1755253996810,1e-08,4644.1,4644.0,10.79361662]
[1755253997109,1e-08,4644.1,4644.0,10.87981962]
[1755253997542,0.002,4644.9,4644.8,5.70294522]
[1755253997717,0.002,4644.9,4644.8,8.98794522]
[1755253998040,0.002,4644.9,4644.8,10.02734522]
[1755253998616,0.002,4646.3,4645.2,0.55]
[1755253998815,0.002,4646.3,4645.3,9.11724062]
[1755253999128,0.002,4646.3,4645.3,10.02791349]
[1755254000749,0.0012,4645.4,4645.3,10.02791349]
[1755254001046,0.0012,4645.4,4645.3,14.02791349]
[1755254001347,0.0012,4645.4,4645.3,15.65459862]
[1755254001646,0.002,4646.3,4645.3,15.65459862]
[1755254001647,1e-08,4645.8,4645.7,2.70252814]
[1755254001814,1e-08,4645.8,4645.7,9.00805342]
[1755254002015,1e-08,4645.8,4645.7,13.90422814]
[1755254002245,1e-08,4645.8,4645.7,15.19877835]
[1755254002449,1e-08,4645.8,4645.7,16.93391576]
[1755254002649,1e-08,4645.8,4645.7,17.04191576]
[1755254003310,0.00120001,4646.3,4646.2,2.7022965]
[1755254003511,0.00120001,4646.3,4646.2,9.00781946]
[1755254003747,0.00120001,4646.3,4646.2,12.42242575]
[1755254004569,0.002,4646.8,4646.7,2.7020649]
[1755254004754,0.002,4646.8,4646.7,9.00758554]
[1755254005055,0.002,4647.1,4647.0,5.70192597]
[1755254005251,0.002,4647.1,4647.0,8.98592597]
[1755254005418,0.002,4647.1,4647.0,11.26481908]
[1755254007557,0.002,4647.1,4647.0,12.71595477]
[1755254008857,0.002,4647.7,4647.6,2.70164816]
[1755254009063,0.002,4647.7,4647.6,5.98464816]
[1755254009361,0.002,4647.7,4647.6,6.09184816]
[1755254009664,0.002,4647.7,4647.6,8.25202161]
[1755254010547,0.3781,4649.3,4647.7,2.15160186]
[1755254010749,0.3781,4649.5,4649.0,0.1072]
[1755254010947,0.3781,4649.4,4649.0,0.1072]
[1755254011147,0.3781,4649.4,4649.3,0.1072]
[1755254011461,0.6977,4649.4,4649.3,0.1072]
[1755254011761,0.6977,4649.4,4649.3,1.39664673]
[1755254011929,0.3781,4649.4,4649.3,1.39664673]
[1755254012130,0.3781,4649.7,4649.4,2.15081515]
[1755254012339,0.3781,4650.3,4649.9,2.150571]
[1755254012659,0.3781,4650.3,4649.3,1.28944673]
[1755254012859,0.3781,4650.3,4650.2,0.1072]
[1755254013164,0.6977,4650.3,4650.2,0.1072]
[1755254013663,0.6977,4650.3,4650.0,0.1072]
[1755254013828,0.3781,4650.2,4650.0,0.1072]
[1755254014029,0.6977,4650.2,4650.0,0.1072]
[1755254014354,0.3781,4650.1,4650.0,0.1072]
[1755254014659,0.6977,4650.1,4650.0,0.1072]
[1755254015465,0.3781,4650.1,4650.0,0.1072]
[1755254015759,0.3781,4650.6,4650.0,2.25772291]
[1755254015969,0.21522635,4650.5,4650.0,2.25772291]
[1755254016166,0.59332635,4650.5,4650.0,2.25772291]
[1755254016471,0.59332635,4650.5,4650.3,0.1072]
[1755254016668,0.3781,4650.4,4650.3,0.1072]
[1755254018664,2.84805265,4650.4,4650.3,0.1072]
[1755254018871,0.6977,4650.4,4650.3,0.1072]
[1755254019268,0.6977,4650.4,4650.3,0.108]
[1755254019969,3.34807674,4650.4,4650.3,0.108]
[1755254020272,2.84805265,4650.4,4650.3,0.108]
[1755254020636,2.84805265,4650.4,4650.3,0.0008]
[1755254020957,2.95525265,4650.4,4650.3,0.0008]
[1755254021161,5.43131082,4650.5,4650.3,0.0008]
[1755254021341,0.3781,4650.4,4650.3,0.0008]
[1755254022153,2.84805265,4650.4,4650.3,0.0008]
[1755254022354,3.68690443,4650.4,4650.3,0.0008]
[1755254022535,3.79410443,4650.4,4650.3,0.0008]
[1755254023462,6.34640443,4650.4,4650.3,0.0008]
[1755254023662,3.25,4650.4,4650.3,0.0008]
[1755254023970,6.531,4650.4,4650.3,0.0008]
[1755254024345,8.68135265,4650.4,4650.3,0.0008]
[1755254024551,6.531,4650.4,4650.3,0.0008]
[1755254025151,3.25,4650.4,4650.3,0.0008]
[1755254025353,5.40035265,4650.4,4650.3,0.0008]
[1755254025655,6.91034414,4650.4,4650.3,0.0008]
[1755254026373,7.66289149,4650.4,4650.3,0.0008]
[1755254026878,10.19134414,4650.4,4650.3,0.0008]
[1755254027778,10.51094414,4650.4,4650.3,0.0008]
[1755254028272,10.19134414,4650.4,4650.3,0.0008]
[1755254029067,9.81324414,4650.4,4650.3,0.0008]
[1755254029779,6.53224414,4650.4,4650.3,0.0008]
[1755254029947,4.38189149,4650.4,4650.3,0.0008]
[1755254030151,6.531,4650.4,4650.3,0.0008]
[1755254030465,8.68135265,4650.4,4650.3,0.0008]
[1755254030777,5.40035265,4650.4,4650.3,0.0008]
[1755254030991,6.53,4650.4,4650.3,0.0008]
[1755254031180,8.68035265,4650.4,4650.3,0.0008]
[1755254031787,3.25,4650.4,4650.3,0.9185]
[1755254032087,3.25,4650.4,4650.3,1.0257]
[1755254032286,3.25,4650.4,4650.3,0.108]
[1755254033483,6.53,4650.4,4650.3,0.108]
[1755254034101,3.25,4650.4,4650.3,0.108]
[1755254034272,6.53,4650.4,4650.3,0.108]
[1755254034778,3.25,4650.4,4650.3,0.108]
[1755254034959,6.53,4650.4,4650.3,0.108]
[1755254035689,3.28,4650.4,4650.3,0.108]
[1755254038090,5.43035265,4650.4,4650.3,0.108]
[1755254038287,6.1886199,4650.4,4650.3,0.108]
[1755254038811,6.1886199,4650.4,4650.3,0.0008]
[1755254039813,4.03826725,4650.4,4650.3,0.0008]
[1755254041025,6.1886199,4650.4,4650.3,0.0008]
[1755254041228,4.03826725,4650.4,4650.3,0.0008]
[1755254042033,4.50250453,4650.4,4650.3,0.0008]
[1755254042212,3.74423728,4650.4,4650.3,0.0008]
[1755254043230,3.74343728,4650.4,4650.3,0.0008]
[1755254043937,9.52188993,4650.4,4650.3,0.0008]
[1755254044693,9.14378993,4650.4,4650.3,0.0008]
[1755254045128,3.71343728,4650.4,4650.3,0.0008]
[1755254045326,6.99343728,4650.4,4650.3,0.0008]
[1755254045530,6.99263728,4650.4,4650.3,0.0008]
[1755254046234,9.14298993,4650.4,4650.3,0.0008]
[1755254046551,9.84068993,4650.4,4650.3,0.0008]
[1755254046722,11.10828656,4650.4,4650.3,0.0008]
[1755254047415,10.41058656,4650.4,4650.3,0.0008]
[1755254048032,7.16058656,4650.4,4650.3,0.0008]
[1755254048928,7.85828656,4650.4,4650.3,0.0008]
[1755254049439,7.53868656,4650.4,4650.3,0.0008]
[1755254049654,7.16058656,4650.4,4650.3,0.0008]
[1755254049841,7.53868656,4650.4,4650.3,0.0008]
[1755254050014,7.85828656,4650.4,4650.3,0.0008]
[1755254051038,4.25868656,4650.4,4650.3,0.0008]
[1755254051243,7.53868656,4650.4,4650.3,0.0008]
[1755254051952,7.16058656,4650.4,4650.3,0.0008]
[1755254053561,3.88058656,4650.4,4650.3,0.0008]
[1755254053761,7.16058656,4650.4,4650.3,0.0008]
[1755254054161,3.88058656,4650.4,4650.3,0.0008]
[1755254054364,7.16058656,4650.4,4650.3,0.0008]
[1755254054523,7.85828656,4650.4,4650.3,0.0008]
[1755254054922,7.53868656,4650.4,4650.3,0.0008]
[1755254055123,7.16058656,4650.4,4650.3,0.0008]
[1755254056061,3.88058656,4650.4,4650.3,0.0008]
[1755254056345,7.16058656,4650.4,4650.3,0.0008]
[1755254057060,7.07604928,4650.4,4650.3,0.0008]
[1755254057238,6.69794928,4650.4,4650.3,0.0008]
[1755254058162,7.39564928,4650.4,4650.3,0.0008]
[1755254058658,7.07604928,4650.4,4650.3,0.0008]
[1755254060139,6.69794928,4650.4,4650.3,0.0008]
[1755254060341,3.41794928,4650.4,4650.3,0.0008]
[1755254060641,6.69794928,4650.4,4650.3,0.0008]
[1755254061682,3.41794928,4650.4,4650.3,0.0008]
[1755254061997,6.69794928,4650.4,4650.3,0.0008]
[1755254062497,5.39967582,4650.2,4650.0,0.9426]
[1755254062693,3.28,4650.1,4649.3,1.29044673]
[1755254062898,0.1072,4650.0,4649.3,1.29044673]
[1755254063199,3.28,4649.9,4649.3,1.29044673]
[1755254063492,3.28,4649.9,4649.4,0.9328]
[1755254063698,0.1072,4650.0,4649.4,0.9328]
[1755254063897,3.28,4649.9,4649.5,0.9328]
[1755254064096,0.1072,4650.0,4649.6,0.9328]
[1755254064277,3.28,4649.9,4649.6,0.9328]
[1755254064477,3.28,4649.9,4649.7,0.9328]
[1755254064720,3.28,4649.9,4649.3,1.29044673]
[1755254064871,3.28,4649.9,4649.8,0.9328]
[1755254065775,3.279,4649.9,4649.8,0.9328]
[1755254066802,0.1072,4650.0,4649.8,0.9328]
[1755254067007,6.5282,4649.9,4649.3,1.29044673]
[1755254067212,6.5282,4649.9,4649.3,3.44127139]
[1755254067712,3.279,4649.8,4649.4,0.9328]
[1755254068209,3.279,4649.7,4649.5,0.9328]
[1755254068501,3.2492,4649.9,4649.6,0.9328]
[1755254068704,3.279,4649.8,4649.7,0.9328]
[1755254068887,3.2492,4649.9,4649.3,3.44129079]
[1755254069083,3.279,4649.8,4649.4,0.9328]
[1755254069397,3.279,4649.8,4649.5,0.9328]
[1755254069604,3.279,4649.8,4649.3,1.29044673]
[1755254069787,3.279,4649.8,4649.6,0.9328]
[1755254069988,3.279,4649.7,4649.3,1.29044673]
[1755254070194,3.279,4649.7,4649.4,0.9328]
[1755254070395,3.2492,4649.9,4649.5,0.9328]
[1755254070608,3.279,4649.8,4649.4,2.15080344]
[1755254070816,3.279,4649.8,4649.6,0.9328]
[1755254070979,3.279,4649.8,4649.7,0.9328]
[1755254072408,3.2492,4649.9,4649.7,0.9328]
[1755254072712,3.279,4649.8,4649.4,0.0008]
[1755254073092,3.2492,4649.9,4649.4,0.0008]
[1755254073282,3.279,4649.8,4649.5,0.9328]
[1755254073485,3.279,4649.8,4649.6,0.9328]
[1755254073689,3.279,4649.8,4649.4,0.0008]
[1755254073936,3.279,4649.8,4649.7,0.9328]
[1755254074307,0.1072,4650.0,4649.7,0.9328]
[1755254074537,3.279,4649.9,4649.7,0.9328]
[1755254074991,0.1072,4650.0,4649.7,0.9328]
[1755254075192,3.279,4649.9,4649.7,0.9328]
[1755254075688,0.1072,4650.0,4649.8,0.9543063]
[1755254075895,0.002,4650.7,4649.9,0.9328]
[1755254076113,3.281,4650.7,4650.0,2.15053546]
[1755254076299,3.281,4650.7,4650.1,0.1072]
[1755254076515,0.002,4650.7,4650.2,0.9328]
[1755254076827,0.002,4650.7,4650.6,0.1072]
[1755254077504,0.002,4650.7,4650.6,1.04]
[1755254077903,0.002,4650.7,4650.6,6.21176278]
[1755254078105,0.002,4650.9,4650.8,5.70016771]
[1755254078417,0.002,4651.4,4650.9,5.15012148]
[1755254078594,0.002,4651.4,4651.3,2.25713657]
[1755254079007,0.002,4651.4,4651.3,6.18993657]
[1755254079236,0.002,4651.4,4651.3,6.08273657]
[1755254079397,0.002,4651.4,4651.3,6.18993657]
[1755254081124,0.002,4651.4,4651.3,9.46793657]
[1755254081321,0.002,4651.4,4651.3,10.75035207]
[1755254082294,0.002,4651.4,4651.3,11.65035207]
[1755254083030,0.2495,4653.4,4651.4,3.0]
[1755254083329,0.2495,4653.4,4651.3,11.65035207]
[1755254083330,0.1072,4653.1,4652.4,0.1072]
[1755254083936,0.4853,4653.1,4652.4,0.1072]
[1755254084436,0.1072,4653.1,4652.4,0.1072]
[1755254085236,2.52649038,4653.0,4652.0,3.278]
[1755254085427,2.14926488,4652.8,4652.2,0.1072]
[1755254085830,0.3773,4653.0,4652.2,0.1072]
[1755254086211,2.14924354,4652.8,4652.2,0.1072]
[1755254086543,2.14921494,4652.9,4652.2,0.1072]
[1755254086841,0.3773,4653.0,4652.2,0.1072]
[1755254086842,2.14924589,4652.8,4652.2,0.26923071]
[1755254088039,0.3773,4653.0,4652.2,0.26923071]
[1755254088252,0.67301475,4653.0,4652.2,0.26923071]
[1755254089635,2.14919727,4652.9,4652.2,0.26923071]
[1755254089841,2.14925273,4652.8,4652.2,0.26923071]
[1755254090235,2.14920354,4652.9,4652.2,0.26923071]
[1755254091122,2.14925181,4652.8,4652.2,0.27003071]
[1755254091311,0.01936281,4652.7,4652.2,0.16283071]
[1755254091555,0.8081,4652.6,4652.2,0.16283071]
[1755254091755,2.25667445,4652.3,4652.2,0.0008]
[1755254091920,5.53367445,4652.3,4652.2,0.0008]
[1755254092126,6.23457445,4652.3,4652.2,0.0008]
[1755254092330,7.79995735,4652.3,4652.2,0.0008]
[1755254094050,4.52295735,4652.3,4652.2,0.0008]
[1755254094251,7.79995735,4652.3,4652.2,0.0008]
[1755254095552,3.82205735,4652.3,4652.2,0.0008]
[1755254095732,5.53367445,4652.3,4652.2,0.0008]
[1755254096054,2.25667445,4652.3,4652.2,0.0008]
[1755254096359,5.53367445,4652.3,4652.2,0.0008]
[1755254096555,0.1072,4652.3,4652.2,0.0008]
[1755254096746,3.3842,4652.3,4652.2,0.0008]
[1755254097142,6.6334,4652.3,4652.2,0.0008]
[1755254097524,3.3564,4652.3,4652.2,0.0008]
[1755254097727,3.3842,4652.7,4652.2,0.8869]
[1755254097923,3.3842,4652.7,4652.2,0.4337]
[1755254098126,2.14938088,4652.6,4652.2,0.0008]
[1755254098359,2.14938333,4652.5,4652.2,0.0008]
[1755254098930,2.14934137,4652.6,4652.2,0.0008]
[1755254099151,3.61562,4652.7,4652.2,0.0008]
[1755254099361,0.1072,4652.3,4652.2,0.0008]
[1755254099558,0.002,4653.0,4652.3,0.4329]
[1755254099559,2.1511519,4653.0,4652.3,0.4329]
[1755254099734,0.1072,4652.7,4652.3,0.4329]
[1755254099935,0.1072,4652.7,4652.2,0.0008]
[1755254100135,0.1072,4652.7,4652.4,0.8861]
[1755254100357,2.25652638,4652.7,4652.2,0.0008]
[1755254100533,2.25652638,4652.7,4652.3,0.4329]
[1755254100865,2.14934121,4652.6,4652.3,0.4329]
[1755254101162,2.14947445,4652.3,4652.2,0.0008]
[1755254101876,5.42647445,4652.3,4652.2,0.0008]
[1755254102555,5.80377445,4652.3,4652.2,0.0008]
[1755254102745,6.66473596,4652.3,4652.2,0.0008]
[1755254103464,6.28743596,4652.3,4652.2,0.0008]
[1755254103671,9.53663596,4652.3,4652.2,0.0008]
[1755254103969,6.25963596,4652.3,4652.2,0.0008]
[1755254104171,9.53663596,4652.3,4652.2,0.0008]
[1755254104340,9.91393596,4652.3,4652.2,0.0008]
[1755254104535,10.23753596,4652.3,4652.2,0.0008]
[1755254106179,10.78753596,4652.3,4652.2,0.0008]
[1755254106363,11.22043596,4652.3,4652.2,0.0008]
[1755254106688,2.14993657,4651.3,4651.2,0.001]
[1755254106975,5.87628002,4651.3,4651.2,0.001]
[1755254107171,5.85691721,4651.3,4651.2,0.001]
[1755254107378,6.66501721,4651.3,4651.2,0.001]
[1755254107545,7.21501721,4651.3,4651.2,0.001]
[1755254108578,10.21501721,4651.3,4651.2,0.001]
[1755254110077,6.51411721,4651.3,4651.2,0.001]
[1755254110282,5.96411721,4651.3,4651.2,0.001]
[1755254112276,6.34141721,4651.3,4651.2,0.001]
[1755254112475,5.96411721,4651.3,4651.2,0.001]
[1755254112868,9.21331721,4651.3,4651.2,0.001]
[1755254113486,5.93631721,4651.3,4651.2,0.001]
[1755254113659,9.21331721,4651.3,4651.2,0.001]
[1755254113989,9.29944321,4651.3,4651.2,0.001]
[1755254115190,6.02244321,4651.3,4651.2,0.001]
[1755254115387,9.29944321,4651.3,4651.2,0.001]
[1755254117463,9.21331721,4651.3,4651.2,0.001]
[1755254118566,5.93631721,4651.3,4651.2,0.001]
[1755254118766,9.21331721,4651.3,4651.2,0.001]
[1755254119606,3.78638064,4651.3,4651.2,0.001]
[1755254119764,9.21331721,4651.3,4651.2,0.8871]
[1755254120285,9.21331721,4651.3,4651.2,0.001]
[1755254120872,9.21331721,4651.3,4651.2,0.0018]
[1755254121073,5.93631721,4651.3,4651.2,0.0018]
[1755254121270,9.21331721,4651.3,4651.2,0.4347]
[1755254121509,9.21331721,4651.3,4651.2,0.0018]
[1755254122279,9.21331721,4651.3,4651.2,0.449]
[1755254123196,5.93631721,4651.3,4651.2,0.449]
[1755254123396,9.21331721,4651.3,4651.2,0.449]
[1755254123603,3.78638064,4651.3,4651.2,0.449]
[1755254123799,6.6334,4651.3,4651.2,0.9421]
[1755254123999,3.3564,4651.3,4651.2,0.9421]
[1755254124193,6.6334,4651.3,4651.2,0.9421]
[1755254126916,6.6334,4651.3,4651.2,0.0018]
[1755254127212,6.6334,4651.3,4651.2,0.9421]
[1755254127574,3.3834,4651.3,4651.2,0.9421]
[1755254129174,5.53333657,4651.3,4651.2,0.9421]
[1755254129503,3.3834,4651.3,4651.2,0.0018]
[1755254129708,5.53333657,4651.3,4651.2,0.0018]
[1755254130671,0.1064,4651.3,4651.2,0.0018]
[1755254131003,3.3834,4651.3,4651.2,0.0018]
[1755254131203,5.53333657,4651.3,4651.2,0.0018]
[1755254131512,3.3834,4651.3,4651.2,0.0018]
[1755254131718,3.3834,4651.3,4651.2,0.9421]
[1755254132413,5.53333657,4651.3,4651.2,0.9421]
[1755254133687,5.53333657,4651.3,4651.2,0.0018]
[1755254134004,3.3834,4651.3,4651.2,0.9421]
[1755254134206,5.53333657,4651.3,4651.2,0.9421]
[1755254134384,5.53333657,4651.3,4651.2,0.0018]
[1755254135478,5.53333657,4651.3,4651.2,0.449]
[1755254135789,5.53333657,4651.3,4651.2,0.0018]
[1755254136301,6.30165534,4651.3,4651.2,0.0018]
[1755254136698,7.55255534,4651.3,4651.2,0.0018]
[1755254137412,8.01635085,4651.3,4651.2,0.0018]
[1755254142214,2.70012148,4650.9,4650.8,0.001]
[1755254142418,6.31613885,4650.9,4650.8,0.001]
[1755254142589,5.50372148,4650.9,4650.8,0.001]
[1755254142789,8.78072148,4650.9,4650.8,0.9413]
[1755254145116,8.78072148,4650.9,4650.8,0.001]
[1755254145486,9.24438885,4650.9,4650.8,0.001]
[1755254147787,5.99798885,4650.9,4650.8,0.001]
[1755254147993,7.68639332,4650.9,4650.8,0.001]
[1755254148291,5.70016771,4650.8,4650.7,1e-08]
[1755254148644,6.40106771,4650.8,4650.7,1e-08]
[1755254149008,6.602216,4650.8,4650.7,1e-08]
[1755254149207,6.88019041,4650.8,4650.7,1e-08]
[1755254150236,7.34385778,4650.8,4650.7,1e-08]
[1755254150954,6.64295778,4650.8,4650.7,1e-08]
[1755254151174,10.02715778,4650.8,4650.7,1e-08]
[1755254151753,10.60598563,4650.8,4650.7,1e-08]
[1755254153060,13.85238563,4650.8,4650.7,1e-08]
[1755254153779,13.65123734,4650.8,4650.7,1e-08]
[1755254154250,13.07240949,4650.8,4650.7,1e-08]
[1755254155672,13.44970949,4650.8,4650.7,1e-08]
[1755254155968,13.77330949,4650.8,4650.7,1e-08]
[1755254156273,13.44970949,4650.8,4650.7,1e-08]
[1755254156475,13.07240949,4650.8,4650.7,1e-08]
[1755254156841,13.77330949,4650.8,4650.7,1e-08]
[1755254157040,13.97412882,4650.8,4650.7,1e-08]
[1755254157255,13.27322882,4650.8,4650.7,1e-08]
[1755254158254,13.35937982,4650.8,4650.7,1e-08]
[1755254158454,10.08237982,4650.8,4650.7,1e-08]
[1755254158768,9.79540949,4650.8,4650.7,1e-08]
[1755254158940,9.79540949,4650.8,4650.7,0.92340001]
[1755254158941,12.52240949,4650.8,4650.7,0.92340001]
[1755254159141,5.96743508,4650.8,4650.7,0.92340001]
[1755254159336,9.24443508,4650.8,4650.7,0.92340001]
[1755254159949,8.78076771,4650.8,4650.7,0.92340001]
[1755254161172,8.78076771,4650.8,4650.7,1e-08]
[1755254161361,9.33076771,4650.8,4650.7,1e-08]
[1755254161564,13.47885663,4650.8,4650.7,1e-08]
[1755254161751,10.20185663,4650.8,4650.7,1e-08]
[1755254161956,13.47885663,4650.8,4650.7,1e-08]
[1755254162179,10.20185663,4650.8,4650.7,1e-08]
[1755254162681,13.47885663,4650.8,4650.7,1e-08]
[1755254163177,13.94179965,4650.8,4650.7,1e-08]
[1755254164076,28.13194635,4650.8,4650.7,1e-08]
[1755254164762,13.94179965,4650.8,4650.7,1e-08]
[1755254164969,14.14284091,4650.8,4650.7,1e-08]
[1755254166081,0.55,4650.3,4649.8,0.001]
[1755254166294,2.70058388,4649.9,4649.8,0.001]
[1755254166591,6.69059261,4649.9,4649.8,0.001]
[1755254166887,5.42758388,4649.9,4649.8,0.9244]
[1755254167478,5.8905269,4649.9,4649.8,0.9244]
[1755254168777,5.42758388,4649.9,4649.8,0.9244]
[1755254169075,2.15058388,4649.9,4649.8,0.9244]
[1755254169377,5.42758388,4649.9,4649.8,0.9244]